fUSD/lending_fUSD_20260224
["ID","MTS","AMOUNT","RATE_DAILY","PERIOD"]
[406588149,1771956643533,-500.0,0.00013698,2]
[406588150,1771956643543,-500.0,0.00013698,2]
[406588151,1771956643553,-648.33639493,0.00013698,2]
[406588152,1771956643562,-533.31,0.00013698,2]
[406588153,1771956643572,-533.31,0.00013698,2]
[406588154,1771956643581,-533.31,0.00013698,2]
[406588155,1771956643592,-533.31,0.00013698,2]
[406588156,1771956643603,-533.31,0.00013698,2]
[406588157,1771956643613,-533.31,0.00013698,2]
[406588158,1771956643623,-533.31,0.00013698,2]
[406588159,1771956643632,-533.31,0.00013698,2]
[406588160,1771956643641,-533.31,0.00013698,2]
[406588161,1771956643650,-533.31,0.00013698,2]
[406588162,1771956643659,-533.31,0.00013698,2]
[406588163,1771956643669,-533.31,0.00013698,2]
[406588164,1771956643678,-533.31,0.00013698,2]
[406588165,1771956643687,-533.31,0.00013698,2]
[406588166,1771956643696,-533.31,0.00013698,2]
[406588167,1771956643706,-533.31,0.00013698,2]
[406588168,1771956643715,-533.31,0.00013698,2]
[406588169,1771956643724,-500.0,0.00013698,2]
[406588170,1771956643733,-500.0,0.00013698,2]
[406588171,1771956643742,-500.0,0.00013698,2]
[406588172,1771956643751,-500.0,0.00013698,2]
[406588173,1771956643760,-500.0,0.00013698,2]
[406588174,1771956643769,-500.0,0.00013698,2]
[406588175,1771956643779,-500.0,0.00013698,2]
[406588176,1771956643788,-500.0,0.00013698,2]
[406588177,1771956643796,-500.0,0.00013698,2]
[406588178,1771956643806,-500.0,0.00013698,2]
[406588179,1771956643815,-500.0,0.00013698,2]
[406588180,1771956643824,-500.0,0.00013698,2]
[406588181,1771956643833,-500.0,0.00013698,2]
[406588182,1771956643842,-500.0,0.00013698,2]
[406588183,1771956643852,-500.0,0.00013698,2]
[406588184,1771956643861,-500.0,0.00013698,2]
[406588185,1771956643870,-500.0,0.00013698,2]
[406588186,1771956643879,-500.0,0.00013698,2]
[406588187,1771956643889,-500.0,0.00013698,2]
[406588188,1771956643898,-332.48969422,0.00013698,2]
[406588189,1771956643908,-753.78,0.00013698,2]
[406588190,1771956643917,-753.78,0.00013698,2]
[406588191,1771956643926,-500.0,0.00013698,2]
[406588192,1771956643935,-753.78,0.00013698,2]
[406588193,1771956643944,-500.0,0.00013698,2]
[406588194,1771956643953,-753.78,0.00013698,2]
[406588195,1771956643962,-753.78,0.00013698,2]
[406588196,1771956643971,-500.0,0.00013698,2]
[406588197,1771956643980,-753.78,0.00013698,2]
[406588198,1771956643990,-500.0,0.00013698,2]
[406588199,1771956643999,-753.78,0.00013698,2]
[406588200,1771956644008,-500.0,0.00013698,2]
[406588201,1771956644018,-753.78,0.00013698,2]
[406588202,1771956644029,-753.78,0.00013698,2]
[406588203,1771956644038,-753.78,0.00013698,2]
[406588204,1771956644047,-753.78,0.00013698,2]
[406588205,1771956644056,-753.78,0.00013698,2]
[406588206,1771956644066,-753.78,0.00013698,2]
[406588207,1771956644077,-753.78,0.00013698,2]
[406588208,1771956644088,-753.78,0.00013698,2]
[406588209,1771956644099,-753.78,0.00013698,2]
[406588210,1771956644108,-753.78,0.00013698,2]
[406588211,1771956644118,-560.18,0.00013698,2]
[406588212,1771956644131,-560.18,0.00013698,2]
[406588213,1771956644139,-560.18,0.00013698,2]
[406588214,1771956644149,-560.18,0.00013698,2]
[406588215,1771956644158,-560.18,0.00013698,2]
[406588216,1771956644167,-560.18,0.00013698,2]
[406588217,1771956644176,-560.18,0.00013698,2]
[406588218,1771956644185,-560.18,0.00013698,2]
[406588219,1771956644195,-560.18,0.00013698,2]
[406588220,1771956644204,-560.18,0.00013698,2]
[406588221,1771956644213,-560.18,0.00013698,2]
[406588222,1771956644223,-560.18,0.00013698,2]
[406588223,1771956644233,-560.18,0.00013698,2]
[406588224,1771956644242,-560.18,0.00013698,2]
[406588225,1771956644251,-560.18,0.00013698,2]
[406588226,1771956644260,-560.18,0.00013698,2]
[406588227,1771956644269,-560.18,0.00013698,2]
[406588228,1771956644279,-500.0,0.00013698,2]
[406588229,1771956644289,-500.0,0.00013698,2]
[406588230,1771956644298,-500.0,0.00013698,2]
[406588231,1771956644307,-395.88818611,0.00013698,2]
[406588232,1771956644316,-557.94,0.00013698,2]
[406588233,1771956644326,-557.94,0.00013698,2]
[406588234,1771956644335,-557.94,0.00013698,2]
[406588235,1771956644345,-557.94,0.00013698,2]
[406588236,1771956644354,-557.94,0.00013698,2]
[406588237,1771956644364,-557.94,0.00013698,2]
[406588238,1771956644374,-557.94,0.00013698,2]
[406588239,1771956644383,-557.94,0.00013698,2]
[406588240,1771956644392,-557.94,0.00013698,2]
[406588241,1771956644401,-557.94,0.00013698,2]
[406588242,1771956644410,-557.94,0.00013698,2]
[406588243,1771956644419,-557.94,0.00013698,2]
[406588244,1771956644428,-557.94,0.00013698,2]
[406588245,1771956644438,-557.94,0.00013698,2]
[406588246,1771956644448,-557.94,0.00013698,2]
[406588247,1771956644458,-557.94,0.00013698,2]
[406588248,1771956644470,-557.94,0.00013698,2]
[406588249,1771956644480,-580.29,0.00013698,2]
[406588250,1771956644490,-580.29,0.00013698,2]
[406588251,1771956644499,-580.29,0.00013698,2]
[406588252,1771956644512,-580.29,0.00013698,2]
[406588253,1771956644522,-580.29,0.00013698,2]
[406588254,1771956644533,-580.29,0.00013698,2]
[406588255,1771956644542,-580.29,0.00013698,2]
[406588256,1771956644552,-580.29,0.00013698,2]
[406588257,1771956644561,-580.29,0.00013698,2]
[406588258,1771956644572,-580.29,0.00013698,2]
[406588259,1771956644581,-580.29,0.00013698,2]
[406588260,1771956644591,-580.29,0.00013698,2]
[406588261,1771956644601,-580.29,0.00013698,2]
[406588262,1771956644610,-580.29,0.00013698,2]
[406588263,1771956644619,-580.29,0.00013698,2]
[406588264,1771956644629,-580.29,0.00013698,2]
[406588265,1771956644676,-580.29,0.00013698,2]
[406588266,1771956644687,-500.0,0.00013698,2]
[406588267,1771956644697,-500.0,0.00013698,2]
[406588268,1771956644707,-500.0,0.00013698,2]
[406588269,1771956644718,-500.0,0.00013698,2]
[406588270,1771956644728,-500.0,0.00013698,2]
[406588271,1771956644737,-500.0,0.00013698,2]
[406588272,1771956644747,-500.0,0.00013698,2]
[406588273,1771956644756,-500.0,0.00013698,2]
[406588274,1771956644765,-500.0,0.00013698,2]
[406588275,1771956644774,-500.0,0.00013698,2]
[406588276,1771956644783,-500.0,0.00013698,2]
[406588277,1771956644793,-514.97195478,0.00013698,2]
[406588278,1771956644803,-1201.23,0.00013698,2]
[406588279,1771956644812,-1201.23,0.00013698,2]
[406588280,1771956644821,-1201.23,0.00013698,2]
[406588281,1771956644831,-1201.23,0.00013698,2]
[406588282,1771956644839,-1201.23,0.00013698,2]
[406588283,1771956644848,-1201.23,0.00013698,2]
[406588284,1771956644857,-1201.23,0.00013698,2]
[406588285,1771956644867,-1201.23,0.00013698,2]
[406588286,1771956644876,-1201.23,0.00013698,2]
[406588287,1771956644886,-1201.23,0.00013698,2]
[406588288,1771956644895,-1201.23,0.00013698,2]
[406588289,1771956644905,-1201.23,0.00013698,2]
[406588290,1771956644914,-1201.23,0.00013698,2]
[406588291,1771956644923,-1201.23,0.00013698,2]
[406588292,1771956644932,-1201.23,0.00013698,2]
[406588293,1771956644941,-1201.23,0.00013698,2]
[406588294,1771956644951,-1201.23,0.00013698,2]
[406588295,1771956644960,-500.0,0.00013698,2]
[406588296,1771956644969,-500.0,0.00013698,2]
[406588297,1771956644979,-500.0,0.00013698,2]
[406588298,1771956644988,-500.0,0.00013698,2]
[406588299,1771956644997,-500.0,0.00013698,2]
[406588300,1771956645006,-500.0,0.00013698,2]
[406588301,1771956645015,-500.0,0.00013698,2]
[406588302,1771956645024,-500.0,0.00013698,2]
[406588303,1771956645033,-500.0,0.00013698,2]
[406588304,1771956645043,-500.0,0.00013698,2]
[406588305,1771956645053,-500.0,0.00013698,2]
[406588306,1771956645062,-500.0,0.00013698,2]
[406588307,1771956645071,-500.0,0.00013698,2]
[406588308,1771956645080,-500.0,0.00013698,2]
[406588309,1771956645089,-500.0,0.00013698,2]
[406588310,1771956645098,-500.0,0.00013698,2]
[406588311,1771956645107,-500.0,0.00013698,2]
[406588312,1771956645116,-500.0,0.00013698,2]
[406588313,1771956645126,-500.0,0.00013698,2]
[406588314,1771956645135,-500.0,0.00013698,2]
[406588315,1771956645144,-500.0,0.00013698,2]
[406588316,1771956645153,-500.0,0.00013698,2]
[406588317,1771956645162,-500.0,0.00013698,2]
[406588318,1771956645172,-500.0,0.00013698,2]
[406588319,1771956645181,-500.0,0.00013698,2]
[406588320,1771956645190,-500.0,0.00013698,2]
[406588321,1771956645199,-500.0,0.00013698,2]
[406588322,1771956645208,-500.0,0.00013698,2]
[406588323,1771956645218,-500.0,0.00013698,2]
[406588324,1771956645227,-500.0,0.00013698,2]
[406588325,1771956645237,-500.0,0.00013698,2]
[406588326,1771956645246,-222.44569411,0.00013698,2]
[406588327,1771956645257,-500.0,0.00013698,2]
[406588328,1771956645266,-500.0,0.00013698,2]
[406588329,1771956645276,-500.0,0.00013698,2]
[406588330,1771956645285,-500.0,0.00013698,2]
[406588331,1771956645295,-500.0,0.00013698,2]
[406588332,1771956645304,-500.0,0.00013698,2]
[406588333,1771956645313,-500.0,0.00013698,2]
[406588334,1771956645322,-500.0,0.00013698,2]
[406588335,1771956645331,-500.0,0.00013698,2]
[406588336,1771956645340,-500.0,0.00013698,2]
[406588337,1771956645349,-364.45426378,0.00013698,2]
[406588338,1771956645359,-587.03,0.00013698,2]
[406588339,1771956645368,-587.03,0.00013698,2]
[406588340,1771956645377,-587.03,0.00013698,2]
[406588341,1771956645386,-587.03,0.00013698,2]
[406588342,1771956645395,-587.03,0.00013698,2]
[406588343,1771956645404,-587.03,0.00013698,2]
[406588344,1771956645413,-587.03,0.00013698,2]
[406588345,1771956645422,-587.03,0.00013698,2]
[406588346,1771956645431,-587.03,0.00013698,2]
[406588347,1771956645440,-587.03,0.00013698,2]
[406588348,1771956645450,-587.03,0.00013698,2]
[406588349,1771956645459,-587.03,0.00013698,2]
[406588350,1771956645469,-587.03,0.00013698,2]
[406588351,1771956645478,-587.03,0.00013698,2]
[406588352,1771956645487,-587.03,0.00013698,2]
[406588353,1771956645497,-587.03,0.00013698,2]
[406588354,1771956645507,-587.03,0.00013698,2]
[406588355,1771956645520,-591.67,0.00013698,2]
[406588356,1771956645530,-591.67,0.00013698,2]
[406588357,1771956645540,-591.67,0.00013698,2]
[406588358,1771956645551,-591.67,0.00013698,2]
[406588359,1771956645561,-591.67,0.00013698,2]
[406588360,1771956645571,-591.67,0.00013698,2]
[406588361,1771956645580,-591.67,0.00013698,2]
[406588362,1771956645590,-591.67,0.00013698,2]
[406588363,1771956645599,-591.67,0.00013698,2]
[406588364,1771956645609,-591.67,0.00013698,2]
[406588365,1771956645618,-591.67,0.00013698,2]
[406588366,1771956645627,-591.67,0.00013698,2]
[406588367,1771956645636,-591.67,0.00013698,2]
[406588368,1771956645646,-591.67,0.00013698,2]
[406588369,1771956645655,-591.67,0.00013698,2]
[406588370,1771956645665,-591.67,0.00013698,2]
[406588371,1771956645675,-591.67,0.00013698,2]
[406588372,1771956645684,-500.0,0.00013698,2]
[406588373,1771956645693,-500.0,0.00013698,2]
[406588374,1771956645703,-500.0,0.00013698,2]
[406588375,1771956645712,-500.0,0.00013698,2]
[406588376,1771956645721,-500.0,0.00013698,2]
[406588377,1771956645731,-500.0,0.00013698,2]
[406588378,1771956645739,-500.0,0.00013698,2]
[406588379,1771956645749,-500.0,0.00013698,2]
[406588380,1771956645758,-500.0,0.00013698,2]
[406588381,1771956645767,-500.0,0.00013698,2]
[406588382,1771956645776,-500.0,0.00013698,2]
[406588383,1771956645785,-500.0,0.00013698,2]
[406588384,1771956645794,-500.0,0.00013698,2]
[406588385,1771956645804,-500.0,0.00013698,2]
[406588386,1771956645813,-500.0,0.00013698,2]
[406588387,1771956645822,-500.0,0.00013698,2]
[406588388,1771956645832,-500.0,0.00013698,2]
[406588389,1771956645841,-917.0,0.00013698,2]
[406588390,1771956645850,-917.0,0.00013698,2]
[406588391,1771956645860,-917.0,0.00013698,2]
[406588392,1771956645870,-917.0,0.00013698,2]
[406588393,1771956645881,-917.0,0.00013698,2]
[406588394,1771956645891,-500.0,0.00013698,2]
[406588395,1771956645901,-917.0,0.00013698,2]
[406588396,1771956645913,-500.0,0.00013698,2]
[406588398,1771956645922,-917.0,0.00013698,2]
[406588399,1771956645931,-917.0,0.00013698,2]
[406588400,1771956645941,-500.0,0.00013698,2]
[406588401,1771956645952,-500.0,0.00013698,2]
[406588402,1771956645961,-917.0,0.00013698,2]
[406588403,1771956645970,-500.0,0.00013698,2]
[406588404,1771956645980,-917.0,0.00013698,2]
[406588405,1771956645989,-500.0,0.00013698,2]
[406588406,1771956645999,-917.0,0.00013698,2]
[406588407,1771956646010,-510.28250517,0.00013698,2]
[406588408,1771956646020,-917.0,0.00013698,2]
[406588409,1771956646029,-917.0,0.00013698,2]
[406588410,1771956646038,-917.0,0.00013698,2]
[406588411,1771956646048,-917.0,0.00013698,2]
[406588412,1771956646058,-917.0,0.00013698,2]
[406588413,1771956646067,-917.0,0.00013698,2]
[406588414,1771956646076,-500.0,0.00013698,2]
[406588415,1771956646086,-500.0,0.00013698,2]
[406588416,1771956646096,-500.0,0.00013698,2]
[406588417,1771956646105,-500.0,0.00013698,2]
[406588418,1771956646115,-500.0,0.00013698,2]
[406588419,1771956646124,-500.0,0.00013698,2]
[406588420,1771956646134,-252.94678281,0.00013698,2]
[406588421,1771956646143,-500.0,0.00013698,2]
[406588422,1771956646152,-500.0,0.00013698,2]
[406588423,1771956646161,-500.0,0.00013698,2]
[406588424,1771956646170,-500.0,0.00013698,2]
[406588425,1771956646179,-500.0,0.00013698,2]
[406588426,1771956646188,-268.25985649,0.00013698,2]
[406588427,1771956646198,-711.34,0.00013699,2]
[406588428,1771956646207,-4589.99,0.000137,2]
[406588429,1771956646216,-4589.99,0.000137,2]
[406588430,1771956646225,-4589.99,0.000137,2]
[406588431,1771956646234,-4589.99,0.000137,2]
[406588432,1771956646243,-4589.99,0.000137,2]
[406588433,1771956646253,-161.74,0.000137,2]
[406588434,1771956646262,-226.624126,0.00013788,7]
[406588435,1771956646271,-3500.0,0.0001386,2]
[406588436,1771956646280,-1613.0,0.00014118,2]
[406588437,1771956646289,-6453.0,0.00014118,2]
[406588438,1771956646299,-2129.0,0.00014167,2]
[406588439,1771956646308,-1000.0,0.00014379,2]
[406588440,1771956646317,-620.70979822,0.00014408,2]
[406588441,1771956646327,-160.0,0.00014557,2]
[406588442,1771956646336,-173.87087054,0.00014557,2]
[406588443,1771956646346,-151.0,0.00014634,2]
[406588444,1771956646356,-151.0,0.00014634,2]
[406588445,1771956646365,-176.18400318,0.000149,2]
[406588446,1771956646374,-250.0,0.00015,2]
[406588447,1771956646384,-16380.211202,0.00015066,7]
[406588448,1771956646393,-500.0,0.000151,2]
[406588449,1771956646402,-509.0327441,0.000151,2]
[406588450,1771956646412,-164.16786887,0.000151,2]
[406588451,1771956646421,-503.3459029,0.000151,2]
[406588452,1771956646431,-162.13031906,0.000151,2]
[406588453,1771956646440,-500.0,0.000151,2]
[406588454,1771956646449,-503.99220136,0.000151,2]
[406588455,1771956646459,-511.18624479,0.000151,2]
[406588456,1771956646468,-504.16390705,0.000151,2]
[406588457,1771956646478,-500.0,0.000151,2]
[406588458,1771956646487,-500.0,0.000151,2]
[406588459,1771956646497,-500.0,0.000151,2]
[406588460,1771956646507,-304.38005979,0.000151,2]
[406588461,1771956646517,-500.0,0.000151,2]
[406588462,1771956646530,-500.0,0.000151,2]
[406588463,1771956646540,-500.0,0.000151,2]
[406588464,1771956646549,-487.94127816,0.000151,2]
[406588465,1771956646560,-500.0,0.000151,2]
[406588466,1771956646569,-186.88471708,0.000151,2]
[406588467,1771956646580,-209.6165406,0.000151,2]
[406588468,1771956646589,-500.0,0.000151,2]
[406588469,1771956646602,-170.38160206,0.000151,2]
[406588470,1771956646611,-500.0,0.000151,2]
[406588471,1771956646621,-168.61283304,0.000151,2]
[406588472,1771956646630,-599.206441,0.000151,2]
[406588473,1771956646639,-501.93759306,0.000151,2]
[406588474,1771956646649,-500.0,0.000151,2]
[406588475,1771956646659,-503.60394883,0.000151,2]
[406588476,1771956646668,-500.0,0.000151,2]
[406588477,1771956646678,-501.44667058,0.000151,2]
[406588478,1771956646687,-500.0,0.000151,2]
[406588479,1771956646697,-500.0,0.000151,2]
[406588480,1771956646706,-504.28462668,0.000151,2]
[406588481,1771956646716,-500.0,0.000151,2]
[406588482,1771956646725,-500.0,0.000151,2]
[406588483,1771956646734,-9101.6,0.0001512,2]
[406588484,1771956646743,-194.426393,0.00015368,7]
[406588485,1771956646752,-2258.0,0.0001553,2]
[406588486,1771956646762,-9035.0,0.0001553,2]
[406588487,1771956646771,-2940.0,0.00015583,2]
[406588488,1771956646780,-501.53221813,0.00015648,2]
[406588489,1771956646790,-483.17728486,0.00015648,2]
[406588490,1771956646799,-1000.0,0.00015648,2]
[406588491,1771956646809,-1000.0,0.00015648,2]
[406588492,1771956646818,-502.25935248,0.00015648,2]
[406588493,1771956646827,-1000.0,0.00015648,2]
[406588494,1771956646837,-436.95947364,0.00015648,2]
[406588495,1771956646846,-1092.86766843,0.00015648,2]
[406588496,1771956646855,-243.69912151,0.00015648,2]
[406588497,1771956646865,-1000.0,0.00015648,2]
[406588498,1771956646874,-1000.0,0.00015648,2]
[406588499,1771956646884,-583.60061699,0.00015648,2]
[406588500,1771956646894,-1000.0,0.00015648,2]
[406588501,1771956646903,-1000.0,0.00015648,2]
[406588502,1771956646913,-500.0,0.00015648,2]
[406588503,1771956646922,-1028.84101903,0.00015648,2]
[406588504,1771956646932,-1000.0,0.00015648,2]
[406588505,1771956646941,-557.94,0.00016021,2]
[406588506,1771956646951,-587.03,0.00016021,2]
[406588507,1771956646961,-917.0,0.00016021,2]
[406588508,1771956646970,-533.31,0.00016115,2]
[406588509,1771956646980,-753.78,0.00016115,2]
[406588510,1771956646989,-560.18,0.00016115,2]
[406588511,1771956647000,-580.29,0.00016115,2]
[406588512,1771956647009,-1201.23,0.00016115,2]
[406588513,1771956647019,-500.0,0.00016115,2]
[406588514,1771956647029,-591.67,0.00016115,2]
[406588515,1771956647039,-620.42088911,0.00016115,2]
[406588516,1771956647048,-9999.99,0.00016116,2]
[406588517,1771956647058,-1500.0,0.00016196,2]
[406588518,1771956647067,-1390.05507377,0.00016196,2]
[406588519,1771956647076,-602.53164684,0.00016196,2]
[406588520,1771956647086,-1500.0,0.00016196,2]
[406588521,1771956647095,-1500.0,0.00016196,2]
[406588522,1771956647104,-1500.0,0.00016196,2]
[406588523,1771956647113,-1500.0,0.00016196,2]
[406588524,1771956647123,-1193.71551848,0.00016196,2]
[406588525,1771956647131,-150.0,0.00016303,7]
[406588526,1771956647141,-150.73989367,0.00016438,2]
[406588527,1771956647150,-215.42973367,0.00016715,2]
[406588528,1771956647159,-932.65135931,0.00016744,2]
[406588529,1771956647169,-2000.0,0.00016744,2]
[406588530,1771956647178,-1255.82806005,0.00016744,2]
[406588531,1771956647187,-503.05357398,0.00016744,2]
[406588532,1771956647197,-300.0,0.000169,2]
[406588533,1771956647206,-300.0,0.00017,2]
[406588534,1771956647215,-3162.0,0.00017083,2]
[406588535,1771956647225,-12649.0,0.00017083,2]
[406588536,1771956647234,-2509.956877,0.00017282,7]
[406588537,1771956647244,-1200.21212036,0.00017292,2]
[406588538,1771956647253,-523.24,0.00017749,2]
[406588539,1771956647262,-523.24,0.00017749,2]
[406588540,1771956647273,-572.17,0.00017749,2]
[406588541,1771956647282,-572.17,0.00017749,2]
[406588542,1771956647291,-584.7,0.00017749,2]
[406588543,1771956647300,-584.7,0.00017749,2]
[406588544,1771956647310,-1312.48776758,0.00017808,2]
[406588545,1771956647321,-1312.48776758,0.00017808,2]
[406588546,1771956647331,-1312.48776758,0.00017808,2]
[406588547,1771956647340,-1312.48776758,0.00017808,2]
[406588548,1771956647350,-1312.48776758,0.00017808,2]
[406588549,1771956647359,-1312.48776758,0.00017808,2]
[406588550,1771956647368,-1312.48776758,0.00017808,2]
[406588551,1771956647377,-1312.48776758,0.00017808,2]
[406588552,1771956647386,-1312.48776758,0.00017808,2]
[406588553,1771956647395,-1312.48776758,0.00017808,2]
[406588554,1771956647404,-1312.48776758,0.00017808,2]
[406588555,1771956647413,-1312.48776758,0.00017808,2]
[406588556,1771956647422,-1312.48776758,0.00017808,2]
[406588557,1771956647431,-1312.48776758,0.00017808,2]
[406588558,1771956647441,-1312.48776758,0.00017808,2]
[406588559,1771956647451,-1312.48776758,0.00017808,2]
[406588560,1771956647461,-1312.48776758,0.00017808,2]
[406588561,1771956647471,-1312.48776758,0.00017808,2]
[406588562,1771956647480,-1312.48776758,0.00017808,2]
[406588563,1771956647490,-1312.48776758,0.00017808,2]
[406588564,1771956647500,-1312.48776757,0.00017808,2]
[406588565,1771956647513,-1312.48776757,0.00017808,2]
[406588566,1771956647523,-1312.48776757,0.00017808,2]
[406588567,1771956647532,-1312.48776757,0.00017808,2]
[406588568,1771956647542,-1312.48776757,0.00017808,2]
[406588569,1771956647551,-1312.48776757,0.00017808,2]
[406588570,1771956647560,-1312.48776757,0.00017808,2]
[406588571,1771956647570,-1312.48776757,0.00017808,2]
[406588572,1771956647580,-1312.48776757,0.00017808,2]
[406588573,1771956647591,-800.0,0.00017808,2]
[406588574,1771956647601,-523.24,0.00017999,2]
[406588575,1771956647610,-523.24,0.00017999,2]
[406588576,1771956647619,-523.24,0.00017999,2]
[406588577,1771956647628,-523.24,0.00017999,2]
[406588578,1771956647637,-523.29265749,0.00017999,2]
[406588579,1771956647647,-572.17,0.00017999,2]
[406588580,1771956647656,-572.17,0.00017999,2]
[406588581,1771956647665,-572.17,0.00017999,2]
[406588582,1771956647675,-572.17,0.00017999,2]
[406588583,1771956647684,-572.25,0.00017999,2]
[406588584,1771956647693,-584.7,0.00017999,2]
[406588585,1771956647703,-584.7,0.00017999,2]
[406588586,1771956647713,-584.7,0.00017999,2]
[406588587,1771956647721,-584.7,0.00017999,2]
[406588588,1771956647731,-584.70383034,0.00017999,2]
[406588589,1771956647740,-238.69561393,0.00018128,2]
[406588590,1771956647750,-476.1,0.00018146,2]
[406588591,1771956647760,-222017.3178353,0.00018286,2]
[406588592,1771956647769,-476.1,0.00018298,2]
[406588593,1771956647778,-188.853438,0.00018384,7]
[406588594,1771956647788,-476.1,0.00018449,2]
[406588595,1771956647797,-51086.66,0.00018516,2]
[406588596,1771956647807,-476.1,0.000186,2]
[406588597,1771956647816,-476.1,0.00018751,2]
[406588598,1771956647825,-259.0,0.00018791,2]
[406588599,1771956647835,-1779.0,0.00018791,2]
[406588600,1771956647844,-476.1,0.00018903,2]
[406588601,1771956647853,-800.0,0.00018904,2]
[406588602,1771956647862,-350.0,0.00019,2]
[406588603,1771956647870,-476.1013388,0.00019054,2]
[406588604,1771956647880,-1358.73171242,0.00019343,2]
[406588605,1771956647889,-5831.55312583,0.000198,2]
[406588606,1771956647899,-9100.117334,0.00020088,7]
[406588607,1771956647908,-222017.3178353,0.0002024,2]
[406588608,1771956647917,-162.021994,0.0002049,7]
[406588609,1771956647926,-400.0,0.00021,2]
[406588610,1771956647935,-159.62910539,0.00021017,2]
[406588611,1771956647944,-533.31,0.00021725,2]
[406588612,1771956647953,-753.78,0.00021725,2]
[406588613,1771956647963,-560.18,0.00021725,2]
[406588614,1771956647971,-557.94,0.00021725,2]
[406588615,1771956647980,-580.29,0.00021725,2]
[406588616,1771956647990,-1201.23,0.00021725,2]
[406588617,1771956648000,-534.96315196,0.00021725,2]
[406588618,1771956648010,-587.03,0.00021725,2]
[406588619,1771956648020,-591.67,0.00021725,2]
[406588620,1771956648031,-917.0,0.00021725,2]
[406588621,1771956648040,-103537.5410324,0.00021726,2]
[406588622,1771956648052,-345.98019903,0.00021944,2]
[406588623,1771956648062,-222017.3178353,0.00022194,2]
[406588624,1771956648071,-151.0,0.00022603,2]
[406588625,1771956648081,-156.587,0.00022603,2]
[406588626,1771956648091,-162.380719,0.00022603,2]
[406588627,1771956648100,-159.89501112,0.00022603,2]
[406588628,1771956648109,-450.0,0.00023,2]
[406588629,1771956648118,-8920.94,0.00023,2]
[406588630,1771956648127,-160.0,0.00023,2]
[406588631,1771956648137,-222017.3178353,0.00024148,2]
[406588632,1771956648146,-1000.0,0.00024512,7]
[406588633,1771956648155,-1000.0,0.00024658,2]
[406588634,1771956648164,-500.0,0.00025,2]
[406588635,1771956648174,-533.31,0.00025474,2]
[406588636,1771956648184,-533.31,0.00025474,2]
[406588637,1771956648193,-533.31,0.00025474,2]
[406588638,1771956648202,-533.31,0.00025474,2]
[406588639,1771956648211,-533.52461346,0.00025474,2]
[406588640,1771956648220,-753.78,0.00025474,2]
[406588641,1771956648230,-753.78,0.00025474,2]
[406588642,1771956648239,-753.78,0.00025474,2]
[406588643,1771956648249,-753.78,0.00025474,2]
[406588644,1771956648259,-753.80338985,0.00025474,2]
[406588645,1771956648269,-560.18,0.00025474,2]
[406588646,1771956648278,-560.18,0.00025474,2]
[406588647,1771956648287,-560.18,0.00025474,2]
[406588648,1771956648297,-560.18,0.00025474,2]
[406588649,1771956648310,-560.2666601,0.00025474,2]